Cogmind - Beta 11 @@@ ROGUE MODE // 2022.04.02 @ 16:18:11 Player: Alexbot Result: Destroyed by P-70 Sage with Tesla Rifle Performance ------------- Evolutions (6) 3000 Regions Visited (20) 4000 Robots Destroyed (131) 655 Value Destroyed (5563) 5563 Prototype IDs (46) 920 Alien Tech Used (3) 600 Bonus (642) 642 TOTAL SCORE: 15380 Bonus ------- High Alert Combat Kills 62 Aligned with FarCom 300 Met Imprinter 300 Friendly Fire -20 Cogmind --------- Core Integrity 0/1150 Matter 285/300 Energy 100/100 System Corruption 47% Temperature Cool (1) Movement Flying (45) Location -4/Factory Parts ------- > --- POWER (2) -------- (None) > --- PROPULSION (5) --- Field Propulsion Drive > --- UTILITY (10) ----- (None) > --- WEAPON (2) ------- (None) > --- INVENTORY (5) ---- High-capacity Storage Unit Bomb Factory No. 2 Molecular Deconstructor Peak State ------------ > --- POWER ------------ Micro Nuclear Core Micro Fission Core > --- PROPULSION ------- Heavy Treads Antigrav System Antigrav System Cooled Gravmag System > --- UTILITY ---------- High-capacity Storage Unit Energy Well Improved Matter Compressor Enhanced Optical Array Advanced Signal Interpreter Improved Targeting Computer Weapon Cycler Advanced Reaction Control System Advanced System Restoration Module Advanced System Restoration Module > --- WEAPON ----------- Matter Neutralizer Railgun > --- INVENTORY -------- Cooled Gravmag System Cooled Gravmag System Large Storage Unit Improved Force Field Authchip [Device] Authchip [Processor] Advanced System Restoration Module Advanced System Restoration Module Advanced System Restoration Module Mobile Refinery Mk. CCLXVII Bomb Factory No. 2 Dimensional Node Initializer Transdimensional Reconstructor Long-range Proton Cannon Improved Proton Missile Launcher Molecular Deconstructor [Rating: 115] Favorites ----------- Power Light Ion Engine Engine Light Ion Engine Power Core Fusion Compressor Reactor Light Antimatter Reactor Propulsion Aluminum Leg Treads Armored Treads Leg Aluminum Leg Wheel Armored Huge Wheel Hover Unit Cooled Gravmag System Flight Unit Field Propulsion Drive Utility Energy Well Device Weapon Cycler Storage Energy Well Processor Advanced Targeting Computer Hackware System Shield Protection Medium Armor Plating Weapon Advanced Beam Cannon Energy Gun AWS/Thermal Energy Cannon Advanced Beam Cannon Ballistic Gun Assault Rifle Ballistic Cannon Flak Cannon Launcher Precision Grenade Launcher Special Weapon Plasma Cutter Slashing Weapon Power Sword Build | -11 -10 -10 -10 -9 -8 -8 -8 -6 -6 -6 -6 -6 -6 -5 -5 -5 -5 -5 -4 -4 ------- Run | Scr Mat Min Exi Min Mat Sto Rec Fac Was Fac Low Low Zio Pro Fac Upp Upp Zhi Pro Fac Slots Evolved 12 | . . . . . 4 . . 4 . . . . . . 2 . . . . 2 Power 1 | . . . . . . . . . . . . . . . . . . . . 1 Propulsion 3 | . . . . . . . . . . . . . . . 2 . . . . 1 Utility 8 | . . . . . 4 . . 4 . . . . . . . . . . . . Weapon . | . . . . . . . . . . . . . . . . . . . . . Parts Attached 200 | . 6 . 3 1 27 12 . 6 1 37 8 3 6 1 12 8 10 16 2 41 Power 15 | . 1 . . . 1 . . 1 . 2 1 1 . . . 1 1 2 . 4 Engine 1 | . 1 . . . . . . . . . . . . . . . . . . . Core 12 | . . . . . 1 . . 1 . 2 1 1 . . . 1 1 1 . 3 Reactor 2 | . . . . . . . . . . . . . . . . . . 1 . 1 Propulsion 42 | . . . . . 4 4 . 2 . 10 1 1 . . 4 . 2 4 . 10 Treads 18 | . . . . . 4 3 . . . 6 . . . . 3 . 1 . . 1 Leg 7 | . . . . . . . . 2 . 4 1 . . . . . . . . . Wheel 3 | . . . . . . 1 . . . . . 1 . . . . 1 . . . Hover 12 | . . . . . . . . . . . . . . . 1 . . 4 . 7 Flight 2 | . . . . . . . . . . . . . . . . . . . . 2 Utility 62 | . 4 . 1 . 7 3 . 3 . 8 2 . 5 1 5 2 2 4 2 13 Device 25 | . . . . . 3 1 . 1 . 2 1 . 3 1 2 1 1 . 1 8 Storage 15 | . 3 . . . . 1 . . . 3 . . 1 . . . 1 2 . 4 Processor 6 | . . . . . 1 1 . 1 . . . . 1 . . . . 1 . 1 Hackware 3 | . . . . . 1 . . . . . . . . . 2 . . . . . Protection 13 | . 1 . 1 . 2 . . 1 . 3 1 . . . 1 1 . 1 1 . Artifact . | . . . . . . . . . . . . . . . . . . . . . Weapon 81 | . 1 . 2 1 15 5 . . 1 17 4 1 1 . 3 5 5 6 . 14 Energy Gun 8 | . . . . . 2 1 . . . 2 2 . . . . . . . . 1 Energy Cannon 28 | . 1 . 1 1 5 2 . . . 6 1 . . . 1 2 2 2 . 4 Ballistic Gun 3 | . . . . . . . . . . 1 . . . . . . . . . 2 Ballistic Cannon 3 | . . . . . 2 . . . . . . . . . . . . 1 . . Launcher 18 | . . . . . 4 . . . 1 3 . . 1 . . 2 3 . . 4 Special Weapon 8 | . . . . . 1 . . . . . . . . . 1 . . 3 . 3 Impact Weapon . | . . . . . . . . . . . . . . . . . . . . . Slashing Weapon 13 | . . . 1 . 1 2 . . . 5 1 1 . . 1 1 . . . . Piercing Weapon . | . . . . . . . . . . . . . . . . . . . . . Special Melee Weapon . | . . . . . . . . . . . . . . . . . . . . . Unidentified Prototypes 15 | . 1 . . . 1 . . . . 2 . . 2 . 1 . . 4 . 4 Corrupted Parts 7 | . . . . . . . . . . . . . . . . 2 2 . . 3 System Corruption 57 | . . . . . . . . . . . . . . . . 10 20 . . 27 Parts Lost 49 | . . . . . 9 1 . . . 2 . 3 . 1 1 3 2 4 . 23 Power 8 | . . . . . 1 . . . . 1 . 1 . . . 1 . 1 . 3 Propulsion 12 | . . . . . 3 1 . . . . . . . . . . . . . 8 Utility 21 | . . . . . 4 . . . . 1 . 2 . 1 1 2 . 2 . 8 Weapon 8 | . . . . . 1 . . . . . . . . . . . 2 1 . 4 Highest Loss Streak 14 | . . . . . 5 1 . . . 1 . 2 . 1 1 3 1 4 . 14 To Critical Strikes . | . . . . . . . . . . . . . . . . . . . . . Average Slot Usage (%) 89 | . 96 100 100 100 84 93 100 81 86 98 93 79 83 91 85 90 77 81 69 61 Engine 3 | . 14 14 14 14 7 . . . . . . . . . . . . . . . Core 4 | . . . . . . 9 9 6 6 5 6 5 6 6 5 4 2 4 . 4 Treads 5 | . . . . . 9 14 18 12 . 12 . . . . 6 11 10 7 . 2 Leg 7 | . 28 28 28 28 8 . . . 13 . 13 9 . . . . . . . . Wheel 1 | . . . . . . 2 . . . . . 1 6 6 5 5 4 3 . . Hover 1 | . . . . . . . . . . . . . . . 1 . . 6 23 12 Device 13 | . . . . . 4 20 18 14 20 23 20 18 17 22 18 17 13 16 13 9 Storage 16 | . 14 14 14 14 9 8 9 6 6 14 20 20 23 26 23 23 23 20 11 11 Processor 7 | . . . . . 8 11 18 18 20 8 6 6 12 8 5 5 5 6 11 12 Hackware 2 | . . . . . 2 9 9 6 6 6 6 1 . . 2 5 5 5 5 . Protection 7 | . 11 14 14 14 16 . . 1 6 11 13 7 6 6 1 1 . 1 2 . Energy Cannon 6 | . 10 14 14 17 14 8 9 6 . 6 . . . . 1 6 4 1 . 1 Ballistic Gun 2 | . 17 14 8 . . . . . . 1 . . . . . . . . . 2 Slashing Weapon 3 | . . . 5 10 . 8 9 6 . 4 2 1 6 6 3 2 2 . . . Naked Turns 36 | . . . . . . . . . . . . . . . . . . . . 36 Heaviest Build 86 | 11 36 36 36 38 55 56 53 61 59 80 57 57 58 59 67 81 80 85 32 86 Greatest Support 70 | 20 20 20 20 20 40 40 40 60 60 60 60 60 28 28 28 28 28 44 44 70 Greatest Overweight (x) 5 | . 1 1 1 1 2 5 1 1 . 3 . 1 2 2 2 2 2 4 1 2 Average Overweight (x) . | . . 1 1 1 . 1 1 . . . . . 1 2 1 1 1 . . . Largest Inventory Capacity 20 | . 15 15 15 15 15 20 20 20 20 20 15 15 15 15 15 15 20 20 15 20 Average Capacity 16 | . 12 15 15 15 15 16 20 20 20 19 15 15 15 15 15 15 16 18 15 15 Most Carried 20 | . 12 14 15 15 15 18 18 20 19 20 15 15 15 15 15 14 18 20 15 19 Average Carried 14 | . 8 13 14 15 14 14 18 19 19 19 14 12 12 14 14 14 15 17 15 14 Final Capacity 20 | 8 15 15 15 15 15 20 20 20 20 15 15 15 15 15 15 15 20 15 15 5 Final Carried 19 | 6 12 14 15 15 14 18 18 19 19 15 15 7 14 15 14 14 18 15 15 5 Class Distribution -------------------- 79% | Mutant 19% | Scavenger-Mutant Dominant Class ---------------- Mutant | -10/Materials Mutant | -10/Mines Mutant | -10/Exiles Mutant | -9/Mines Mutant | -8/Materials Scavenger-Mutant | -8/Storage Mutant | -8/Recycling Mutant | -6/Factory Mutant | -6/Waste Mutant | -6/Factory Scavenger-Mutant | -6/Lower Caves Scavenger-Mutant | -6/Lower Caves Mutant | -6/Zion Mutant | -5/Proximity Caves Mutant | -5/Factory Mutant | -5/Upper Caves Mutant | -5/Upper Caves Scavenger-Mutant | -5/Zhirov Mutant | -4/Proximity Caves Mutant | -4/Factory Resources | -11 -10 -10 -10 -9 -8 -8 -8 -6 -6 -6 -6 -6 -6 -5 -5 -5 -5 -5 -4 -4 ----------- Run | Scr Mat Min Exi Min Mat Sto Rec Fac Was Fac Low Low Zio Pro Fac Upp Upp Zhi Pro Fac Matter Collected 4536 | 200 103 47 . 75 473 97 20 29 . 1301 76 33 515 57 5 421 201 253 51 579 Remotely . | . . . . . . . . . . . . . . . . . . . . . Salvage Created 5999 | . 409 26 . 130 903 355 . 29 . 1541 73 244 . 28 117 330 349 170 . 1295 Parts 314 | . 25 4 . 13 61 14 . 2 . 45 8 9 . . 4 17 12 16 . 84 Haulers Intercepted 3 | . . . . . . 1 . . . 1 . . . . . . . . . 1 Recyclers Shooed 5 | . . . . . . 1 . . . 4 . . . . . . . . . . Parts Field Recycled . | . . . . . . . . . . . . . . . . . . . . . Retrieved Matter . | . . . . . . . . . . . . . . . . . . . . . Parts Self-Destructed 23 | . . . . . . . . . . . . 9 . . . 3 3 8 . . Prevented 23 | . . . . . . . . . . . . . . . . 12 3 8 . . Kills | -11 -10 -10 -10 -9 -8 -8 -8 -6 -6 -6 -6 -6 -6 -5 -5 -5 -5 -5 -4 -4 ------- Run | Scr Mat Min Exi Min Mat Sto Rec Fac Was Fac Low Low Zio Pro Fac Upp Upp Zhi Pro Fac Combat Hostiles Destroyed 102 | . 9 2 . 4 22 4 . . . 14 2 4 . 2 4 7 9 . . 19 Melee 5 | . . . . . . 3 . . . 2 . . . . . . . . . . Guns 13 | . 1 2 . . 3 . . . . 1 2 3 . . . . . . . 1 Cannons 28 | . 8 . . 4 5 1 . . . 4 . . . . . 1 . . . 5 AOE 43 | . . . . . 13 . . . . 7 . . . 2 4 4 6 . . 7 Classes Destroyed 18 | . 3 1 . 1 6 1 . . . 1 1 1 . . . 1 1 . . 1 Worker 6 | . 1 . . 1 2 . . . . 1 . . . . . . . . . 1 Builder 4 | . . . . . 2 . . . . . . . . . . . . . . 2 Hauler 3 | . . . . . . 1 . . . 1 . . . . . . . . . 1 Recycler 9 | . . . . . 2 1 . . . 6 . . . . . . . . . . Minesweeper 1 | . . . . . . . . . . . . 1 . . . . . . . . Operator 2 | . . . . . 1 . . 1 . . . . . . . . . . . . Watcher 4 | . 1 . . . 2 . . . . 1 . . . . . . . . . . Swarmer 9 | . . 2 . 3 3 . . . . . . . . . . 1 . . . . Cutter 3 | . . . . . . . . . . . . . . . . . . . . 3 Grunt 49 | . 9 . . . 12 2 . . . 7 . 1 . . 4 3 5 . . 6 Duelist 5 | . . . . . 2 . . . . . . . . . . 1 2 . . . Sentry 11 | . . . . 1 3 2 . . . 2 . . . . . 1 1 . . 1 Hunter 10 | . . . . . 1 . . . . 2 1 2 . 2 . . . . . 2 Programmer 11 | . . . . . . . . . . 3 . 1 . . . . . . . 7 Heavy 1 | . . . . . 1 . . . . . . . . . . . . . . . Behemoth 1 | . . . . . . . . . . . . . . . . 1 . . . . Master Thief 1 | . . . . . . . . . . . 1 . . . . . . . . . Mutant 1 | . . . . . . . . . . . . . . . . . 1 . . . Best Kill Streak 9 | . 3 2 . 3 9 2 . 1 . 5 3 4 . 1 4 4 4 . . 6 Combat Bots Only 6 | . 3 2 . 3 6 1 . . . 4 1 3 . 1 4 4 4 . . 6 Max Kills in Single Turn 2 | . 1 1 . 1 2 1 . 1 . 2 1 1 . 1 1 2 2 . . 2 Gunslinging . | . . . . . . . . . . . . . . . . . . . . . Exploded 2 | . . . . . 2 . . . . 2 . . . 1 1 2 2 . . 2 Melee 1 | . . . . . . 1 . . . 1 . . . . . . . . . . Uniques/NPCs Destroyed . | . . . . . . . . . . . . . . . . . . . . . Combat | -11 -10 -10 -10 -9 -8 -8 -8 -6 -6 -6 -6 -6 -6 -5 -5 -5 -5 -5 -4 -4 -------- Run | Scr Mat Min Exi Min Mat Sto Rec Fac Was Fac Low Low Zio Pro Fac Upp Upp Zhi Pro Fac Damage Taken 10004 | . 475 33 . 193 1250 141 . . 39 1307 . 397 . 156 197 725 705 714 . 3672 Core 2137 | . 53 . . 26 120 14 . . . 198 . 84 . 12 21 157 135 182 . 1135 Absorbed by Shields . | . . . . . . . . . . . . . . . . . . . . . Reduced by Siege Mode 84 | . . . . . . . . . . . . . . . . . . . . 84 Redirected to Shielding 363 | . . . . . . . . . . . . 44 . 27 27 . . 173 . 92 Regen/Repaired (Parts) 374 | . . . . . . 110 . . . 264 . . . . . . . . . . Core Remaining (%) 71 | 100 . . . 68 . . 75 . . . . . . 65 . . . . 50 . Volleys Fired 355 | . 48 5 . 19 51 7 . . 14 76 1 . . 8 12 20 26 16 . 52 Largest 2 | . 2 1 . 2 2 1 . . 1 2 1 . . 1 1 2 1 2 . 2 Hottest 156 | . 88 20 . 136 136 68 . . 33 153 85 . . 36 81 156 81 95 . 140 Shots Fired 470 | . 55 5 . 23 85 7 . . 13 95 5 32 . 8 12 32 26 18 . 54 Gun 81 | . 10 5 . . 10 . . . . 15 4 32 . . . . . . . 5 Cannon 268 | . 45 . . 23 56 7 . . . 67 1 . . . 2 23 16 3 . 25 Launcher 97 | . . . . . 19 . . . 13 13 . . . 8 7 9 10 . . 18 Special 24 | . . . . . . . . . . . . . . . 3 . . 15 . 6 Kinetic 41 | . 10 5 . . 6 . . . . 15 . . . . . . . . . 5 Thermal 279 | . 45 . . 23 60 7 . . . 67 5 32 . . 3 . . 15 . 22 Explosive 81 | . . . . . 19 . . . 13 13 . . . 8 7 9 10 . . 2 Electromagnetic 63 | . . . . . . . . . . . . . . . 2 23 16 3 . 19 Robot Hit Streak 13 | . 6 7 . 3 12 5 . . 4 13 6 7 . 3 7 6 13 9 . 7 Robot Miss Streak 6 | . 2 1 . 5 4 2 . . 2 6 . 2 . 1 1 2 2 2 . 2 Penetration Max . | . . . . . . . . . . . . . . . . . . . . . Secondary Targets . | . . . . . . . . . . . . . . . . . . . . . Autonomous 46 | . . . . . 10 . . . . . 4 32 . . . . . . . . Shots Hit Robots 355 | . 37 3 . 11 57 19 . 1 8 85 4 29 . 6 8 19 19 12 . 37 Core Hits 249 | . 14 2 . 5 57 5 . 1 1 62 3 8 . 6 9 17 18 5 . 36 Critical Kills 3 | . . . . . 1 1 . . . 1 . . . . . . . . . . Critical Parts Destroyed . | . . . . . . . . . . . . . . . . . . . . . Critical Strikes 4 | . . . . . 1 1 . . . 1 . . . . . . 1 . . . Meltdown 3 | . . . . . 1 1 . . . 1 . . . . . . . . . . Sever 1 | . . . . . . . . . . . . . . . . . 1 . . . Melee Attacks 73 | . . . . . 2 14 . 1 . 21 13 7 4 . . 1 10 . . . Impact . | . . . . . . . . . . . . . . . . . . . . . Slashing 73 | . . . . . 2 14 . 1 . 21 13 7 4 . . 1 10 . . . Piercing . | . . . . . . . . . . . . . . . . . . . . . Sneak Attacks 8 | . . . . . . 3 . 1 . 4 . . . . . . . . . . Combat Hostiles 1 | . . . . . . 1 . . . . . . . . . . . . . . Follow-up Attacks 1 | . . . . . . . . . . 1 . . . . . . . . . . Damage Inflicted 15998 | . 749 53 . 287 2792 760 . 95 952 3168 118 926 . 347 740 1081 1622 209 . 2099 Guns 1765 | . 96 42 . . 291 . . . . 330 118 769 . . . . . . . 119 Cannons 4517 | . 653 . . 287 822 123 . . . 1137 . . . . . 412 383 42 . 658 Explosions 7817 | . . . . . 1679 . . . 952 962 . . . 347 719 669 1182 . . 1307 Melee 1685 | . . . . . . 637 . 95 . 739 . 157 . . . . 57 . . . Ramming 26 | . . 11 . . . . . . . . . . . . . . . . . 15 Kinetic 695 | . 96 42 . . 108 . . . . 330 . . . . . . . . . 119 Thermal 4973 | . 653 . . 287 1005 123 . . . 1210 118 769 . . 21 . . 167 . 620 Explosive 6570 | . . . . . 1679 . . . 952 889 . . . 347 719 669 1182 . . 133 Electromagnetic 2049 | . . . . . . . . . . . . . . . . 412 383 42 . 1212 Impact . | . . . . . . . . . . . . . . . . . . . . . Slashing 1685 | . . . . . . 637 . 95 . 739 . 157 . . . . 57 . . . Piercing . | . . . . . . . . . . . . . . . . . . . . . Highest Corruption 47 | . 1 1 1 1 . . . . 9 11 11 11 11 . . 16 36 36 36 47 Average Corruption 10 | . 1 1 1 1 . . . . 9 9 11 11 11 . . 15 23 36 36 22 Corruption Purged 7 | . . . . . . . . . . . . . . . . . . . . 7 Corruption Blocked . | . . . . . . . . . . . . . . . . . . . . . Effects 218 | . 5 8 4 5 . . . . 2 67 4 11 7 . . 24 16 20 8 37 Message Errors 55 | . 2 1 . 1 . . . . 1 15 2 3 1 . . 12 4 2 3 8 Matter Fused 56 | . 2 5 1 2 . . . . . 20 . 2 . . . 3 4 7 2 8 Heat Flow Errors 21 | . . . . . . . . . . 7 . 1 2 . . 1 2 4 2 2 Energy Discharges 15 | . . 1 1 . . . . . . 9 . . 2 . . 1 . 1 . . Parts Rejected 1 | . . . . . . . . . . . . . . . . . . . . 1 Data Loss (minor) 29 | . . 1 1 1 . . . . . 10 1 3 2 . . 2 1 3 1 3 Data Loss (major) 15 | . . . 1 1 . . . . . 3 1 1 . . . 1 3 2 . 2 Misfires 6 | . . . . . . . . . . . . . . . . 3 1 . . 2 Alerts 5 | . . . . . . . . . . 1 . . . . . 1 . 1 . 2 Misdirections 10 | . . . . . . . . . . 1 . 1 . . . . . . . 8 Weapon Failures 5 | . 1 . . . . . . . 1 1 . . . . . . 1 . . 1 Overload Shots . | . . . . . . . . . . . . . . . . . . . . . Overflow Damage 588 | . . . . 2 58 83 . . 91 145 . 13 . . 22 85 45 8 . 36 Projectiles 99 | . . . . 2 . . . . . 78 . . . . . . 11 8 . . Explosions 326 | . . . . . 58 . . . 91 . . . . . 22 85 34 . . 36 Melee 163 | . . . . . . 83 . . . 67 . 13 . . . . . . . . Knockbacks . | . . . . . . . . . . . . . . . . . . . . . Impact . | . . . . . . . . . . . . . . . . . . . . . Kinetic . | . . . . . . . . . . . . . . . . . . . . . Secondary . | . . . . . . . . . . . . . . . . . . . . . Self-Inflicted Damage 541 | . . . . . 71 . . . 39 60 . . . . 41 67 6 . . 257 Shots 26 | . . . . . 3 . . . 1 3 . . . . 2 2 1 . . 14 Rammed 3 | . . . . . . . . . . . . . . . . . . . . 3 Targets Rammed 4 | . . 1 . . . . . . . . . . . . . . . . . 3 Kicked 1 | . . 1 . . . . . . . . . . . . . . . . . . Crushed . | . . . . . . . . . . . . . . . . . . . . . Highest Temperature 497 | . 401 . . 408 497 69 . . . 348 39 84 210 . . 51 209 170 146 314 Average Temperature 134 | . 166 . . 137 159 34 . . . 95 39 62 120 . . 14 53 88 97 129 Received Heat Transfer 1578 | . 261 . . . 441 54 . . . 267 . 9 . . 57 75 189 . . 225 Effects 9 | . 4 . . . 5 . . . . . . . . . . . . . . . Shutdowns 5 | . 2 . . . 3 . . . . . . . . . . . . . . . Energy Bleed 1 | . 1 . . . . . . . . . . . . . . . . . . . Interference 2 | . . . . . 2 . . . . . . . . . . . . . . . Damage (minor) 1 | . 1 . . . . . . . . . . . . . . . . . . . Siege Activations 5 | . . . . . . . . . . . . . . . . . . . . 5 Total Turns 40 | . . . . . . . . . . . . . . . . . . . . 40 Longest Duration 23 | . . . . . . . . . . . . . . . . . . . . 23 Robots Corrupted 10 | . . . . . . . . . . . . . . . . 2 3 . . 5 Combat Hostiles 10 | . . . . . . . . . . . . . . . . 2 3 . . 5 Parts Fried 14 | . . . . . . . . . . . . . . . . 2 . . . 12 Impact Corruptions . | . . . . . . . . . . . . . . . . . . . . . Robots Melted 4 | . . . . . 1 1 . . . 1 . 1 . . . . . . . . Combat Hostiles 2 | . . . . . 1 . . . . . . 1 . . . . . . . . Parts Melted 25 | . 2 . . 3 5 1 . . . 5 1 7 . . . . . . . 1 Heat Transferred 7487 | . 1184 . . 518 1591 222 . . . 1789 148 962 . . 74 . . 481 . 518 Parts Sabotaged . | . . . . . . . . . . . . . . . . . . . . . Parts Stolen 8 | . . . . . . . . . . . . 5 . . . . 3 . . . Parts Stripped . | . . . . . . . . . . . . . . . . . . . . . Power Chain Reactions 2 | . . . . . . . . . . . . . . . . . . . . 2 Missiles Intercepted . | . . . . . . . . . . . . . . . . . . . . . Alert | -11 -10 -10 -10 -9 -8 -8 -8 -6 -6 -6 -6 -6 -6 -5 -5 -5 -5 -5 -4 -4 ------- Run | Scr Mat Min Exi Min Mat Sto Rec Fac Was Fac Low Low Zio Pro Fac Upp Upp Zhi Pro Fac Peak Influence 957 | . 153 139 . 85 488 308 89 957 408 431 . . . . 245 . . . . 396 Initial 937 | . . 59 . . 15 206 62 937 334 285 . . . . 31 . . . . . Average 193 | . 57 44 . 62 133 216 67 940 376 263 . . . . 187 . . . . 208 Maximum Alert Level 3 | . . . . . 2 1 . 3 2 2 . . . . 1 . . . . 1 Low Security (%) 63 | . 100 100 . 100 83 35 100 . . 39 . . . . 41 . . . . 44 Level 1 31 | . . . . . 12 64 . . 91 58 . . . . 58 . . . . 55 Level 2 1 | . . . . . 4 . . . 8 2 . . . . . . . . . . Level 3 4 | . . . . . . . . 100 . . . . . . . . . . . . Level 4 . | . . . . . . . . . . . . . . . . . . . . . Level 5 . | . . . . . . . . . . . . . . . . . . . . . High Security . | . . . . . . . . . . . . . . . . . . . . . Max Security . | . . . . . . . . . . . . . . . . . . . . . Squads Dispatched 24 | . 2 . . . 5 1 . 3 . 4 . . . . 1 . . . . 8 Investigation 5 | . 1 . . . 1 1 . . . 1 . . . . . . . . . 1 Extermination 6 | . . . . . . . . . . 3 . . . . 1 . . . . 2 Reinforcement 12 | . 1 . . . 4 . . 3 . . . . . . . . . . . 4 Assault . | . . . . . . . . . . . . . . . . . . . . . Garrison 1 | . . . . . . . . . . . . . . . . . . . . 1 Intercept . | . . . . . . . . . . . . . . . . . . . . . Searches Triggered . | . . . . . . . . . . . . . . . . . . . . . Construction Impeded 3 | . . . . . 1 . . . . . . . . . . . . . . 2 Haulers Reinforced . | . . . . . . . . . . . . . . . . . . . . . Active Scanning Responses . | . . . . . . . . . . . . . . . . . . . . . Cargo Convoy Interrupts . | . . . . . . . . . . . . . . . . . . . . . Stealth | -11 -10 -10 -10 -9 -8 -8 -8 -6 -6 -6 -6 -6 -6 -5 -5 -5 -5 -5 -4 -4 --------- Run | Scr Mat Min Exi Min Mat Sto Rec Fac Was Fac Low Low Zio Pro Fac Upp Upp Zhi Pro Fac Distress Signals 4 | . . . . . 2 . . . . 1 . . . . . . . . . 1 Communications Jammed . | . . . . . . . . . . . . . . . . . . . . . Distress Signals . | . . . . . . . . . . . . . . . . . . . . . Times Spotted 166 | . 12 3 . 4 29 6 4 1 6 18 2 9 . 2 11 6 14 . . 39 Peak Tracking Total 10 | . 3 3 . 3 5 2 4 1 6 4 1 5 . 1 5 4 4 . . 10 Tactical Retreats 8 | . . 1 . . 2 1 . . . . . . . . 2 1 . . . 1 Traps | -11 -10 -10 -10 -9 -8 -8 -8 -6 -6 -6 -6 -6 -6 -5 -5 -5 -5 -5 -4 -4 ------- Run | Scr Mat Min Exi Min Mat Sto Rec Fac Was Fac Low Low Zio Pro Fac Upp Upp Zhi Pro Fac Traps Triggered 9 | . 1 . . . 1 . . 1 . . . . . . . . . . . 6 Indirectly 5 | . . . . . . . . . . . . . . . . . . . . 5 Trap Hack Attempts . | . . . . . . . . . . . . . . . . . . . . . Triggered . | . . . . . . . . . . . . . . . . . . . . . Disarmed . | . . . . . . . . . . . . . . . . . . . . . Reprogrammed . | . . . . . . . . . . . . . . . . . . . . . Reused . | . . . . . . . . . . . . . . . . . . . . . Traps Extracted . | . . . . . . . . . . . . . . . . . . . . . Installed 1 | . . . . . . . . . . . . 1 . . . . . . . . Triggered . | . . . . . . . . . . . . . . . . . . . . . Most Traps Carried 1 | . . . . . . . . . . . . 1 . . . . . . . . Machines | -11 -10 -10 -10 -9 -8 -8 -8 -6 -6 -6 -6 -6 -6 -5 -5 -5 -5 -5 -4 -4 ---------- Run | Scr Mat Min Exi Min Mat Sto Rec Fac Was Fac Low Low Zio Pro Fac Upp Upp Zhi Pro Fac Machines Disabled 24 | . . . . 1 3 . . . . 7 1 . 1 . 1 . 2 1 . 7 Max in Single Turn 6 | . . . . 1 1 . . . . 6 1 . 1 . 1 . 1 1 . 2 Machines Sabotaged . | . . . . . . . . . . . . . . . . . . . . . Garrisons Compromised . | . . . . . . . . . . . . . . . . . . . . . Overloaded Fab Kills . | . . . . . . . . . . . . . . . . . . . . . Hacking | -11 -10 -10 -10 -9 -8 -8 -8 -6 -6 -6 -6 -6 -6 -5 -5 -5 -5 -5 -4 -4 --------- Run | Scr Mat Min Exi Min Mat Sto Rec Fac Was Fac Low Low Zio Pro Fac Upp Upp Zhi Pro Fac Machines Accessed 28 | . 2 . 2 . 1 3 1 . . 6 . 1 . . 2 . . 4 . 6 Terminals 13 | . 2 . . . . 2 1 . . 2 . . . . 1 . . . . 5 Fabricators 4 | . . . . . . . . . . 3 . . . . 1 . . . . . Repair Stations 2 | . . . . . . 1 . . . 1 . . . . . . . . . . Recycling Units . | . . . . . . . . . . . . . . . . . . . . . Scanalyzers 1 | . . . . . 1 . . . . . . . . . . . . . . . Garrison Access 1 | . . . . . . . . . . . . . . . . . . . . 1 Total Hacks 79 | . 3 . 2 . 2 7 6 . . 17 . 1 . . 8 . . 17 . 16 Successful 44 | . 1 . 2 . 2 3 3 . . 7 . 1 . . 5 . . 17 . 3 Failed 35 | . 2 . . . . 4 3 . . 10 . . . . 3 . . . . 13 Catastrophic 8 | . 1 . . . . 1 1 . . 3 . . . . . . . . . 2 Database Lockouts . | . . . . . . . . . . . . . . . . . . . . . Manual 40 | . 3 . 1 . . 7 1 . . 10 1 1 1 . 4 . . . . 11 Terminals 34 | . 3 . . . . 4 6 . . 6 . . . . 2 . . . . 13 Fabricators 15 | . . . . . . . . . . 9 . . . . 6 . . . . . Repair Stations 5 | . . . . . . 3 . . . 2 . . . . . . . . . . Recycling Units . | . . . . . . . . . . . . . . . . . . . . . Scanalyzers 2 | . . . . . 2 . . . . . . . . . . . . . . . Garrison Access 3 | . . . . . . . . . . . . . . . . . . . . 3 Terminal Hacks 28 | . 1 . 2 . . 1 3 . . 2 . 1 . . . . . 17 . 1 Record 6 | . . . 1 . . . . . . . . . . . . . . 5 . . Part Schematic 5 | . . . . . . . 1 . . . . . . . . . . 4 . . Robot Analysis 4 | . . . . . . . . . . . . . . . . . . 4 . . Prototype ID Bank 4 | . . . . . . . . . . . . . . . . . . 4 . . Open Door 2 | . . . . . . 1 . . . . . 1 . . . . . . . . Open DSF 1 | . . . . . . . . . . . . . . . . . . . . 1 Branch Access Points 3 | . 1 . . . . . 1 . . 1 . . . . . . . . . . Terminal Index 1 | . . . . . . . . . . 1 . . . . . . . . . . Hauler Manifests 1 | . . . . . . . 1 . . . . . . . . . . . . . EX-Prototype ID Bank 1 | . . . 1 . . . . . . . . . . . . . . . . . Fabricator Hacks 5 | . . . . . . . . . . 2 . . . . 3 . . . . . Network Status 2 | . . . . . . . . . . 2 . . . . . . . . . . Load Schematic 2 | . . . . . . . . . . . . . . . 2 . . . . . Build 1 | . . . . . . . . . . . . . . . 1 . . . . . Repair Station Hacks 4 | . . . . . . 2 . . . 2 . . . . . . . . . . Scan Component 2 | . . . . . . 1 . . . 1 . . . . . . . . . . Repair 2 | . . . . . . 1 . . . 1 . . . . . . . . . . Recycling Unit Hacks . | . . . . . . . . . . . . . . . . . . . . . Scanalyzer 2 | . . . . . 2 . . . . . . . . . . . . . . . Insert Component 1 | . . . . . 1 . . . . . . . . . . . . . . . Analyze 1 | . . . . . 1 . . . . . . . . . . . . . . . Garrison Access Hacks . | . . . . . . . . . . . . . . . . . . . . . Unauthorized Hacks 5 | . . . . . . . . . . 1 . . . . 2 . . . . 2 Terminals 3 | . . . . . . . . . . . . . . . 1 . . . . 2 Track 1 | . . . . . . . . . . . . . . . . . . . . 1 Assimilate 1 | . . . . . . . . . . . . . . . 1 . . . . . Botnet 1 | . . . . . . . . . . . . . . . . . . . . 1 Fabricators 2 | . . . . . . . . . . 1 . . . . 1 . . . . . Report 1 | . . . . . . . . . . 1 . . . . . . . . . . Prioritize 1 | . . . . . . . . . . . . . . . 1 . . . . . Repair Stations . | . . . . . . . . . . . . . . . . . . . . . Recycling Units . | . . . . . . . . . . . . . . . . . . . . . Scanalyzers . | . . . . . . . . . . . . . . . . . . . . . Garrison Access . | . . . . . . . . . . . . . . . . . . . . . Data Cores Recovered . | . . . . . . . . . . . . . . . . . . . . . Used . | . . . . . . . . . . . . . . . . . . . . . Hacking Detections 19 | . 1 . . . 1 3 1 . . 5 . . . . 2 . . . . 6 Full Trace Events 4 | . 1 . . . . 1 . . . 1 . . . . . . . . . 1 Feedback Events . | . . . . . . . . . . . . . . . . . . . . . Feedback Blocked . | . . . . . . . . . . . . . . . . . . . . . Robot Schematics Acquired 3 | . . . . . . . . . . . . . 3 . . . . . . . Robots Built . | . . . . . . . . . . . . . . . . . . . . . Authchips . | . . . . . . . . . . . . . . . . . . . . . Time . | . . . . . . . . . . . . . . . . . . . . . Total Robot Build Rating . | . . . . . . . . . . . . . . . . . . . . . Part Schematics Acquired 20 | . . . . . 1 . 1 . . . . . 14 . . . . 4 . . Parts Built 2 | . . . . . . . . . . . . . . . 2 . . . . . Authchips 1 | . . . . . . . . . . . . . . . 1 . . . . . Time 53 | . . . . . . . . . . . . . . . 53 . . . . . Total Part Build Rating 12 | . . . . . . . . . . . . . . . 12 . . . . . Parts Repaired 2 | . . . . . . 1 . . . 1 . . . . . . . . . . Time 64 | . . . . . . 26 . . . 38 . . . . . . . . . . Parts Recycled . | . . . . . . . . . . . . . . . . . . . . . Recycled Matter . | . . . . . . . . . . . . . . . . . . . . . Retrieved Matter . | . . . . . . . . . . . . . . . . . . . . . Retrieved Components . | . . . . . . . . . . . . . . . . . . . . . Parts Scanalyzed 1 | . . . . . 1 . . . . . . . . . . . . . . . Part Schematics Acquired 1 | . . . . . 1 . . . . . . . . . . . . . . . Parts Damaged . | . . . . . . . . . . . . . . . . . . . . . Bothacking | -11 -10 -10 -10 -9 -8 -8 -8 -6 -6 -6 -6 -6 -6 -5 -5 -5 -5 -5 -4 -4 ------------ Run | Scr Mat Min Exi Min Mat Sto Rec Fac Was Fac Low Low Zio Pro Fac Upp Upp Zhi Pro Fac Used RIF Installer . | . . . . . . . . . . . . . . . . . . . . . Robots Hacked . | . . . . . . . . . . . . . . . . . . . . . Non-combat . | . . . . . . . . . . . . . . . . . . . . . Combat . | . . . . . . . . . . . . . . . . . . . . . Robot Hacks Applied . | . . . . . . . . . . . . . . . . . . . . . Relay Couplers Released . | . . . . . . . . . . . . . . . . . . . . . Fabnet Peak Effective % . | . . . . . . . . . . . . . . . . . . . . . Robots Rewired . | . . . . . . . . . . . . . . . . . . . . . Allies Hacked . | . . . . . . . . . . . . . . . . . . . . . Hacks Repelled . | . . . . . . . . . . . . . . . . . . . . . Allies | -11 -10 -10 -10 -9 -8 -8 -8 -6 -6 -6 -6 -6 -6 -5 -5 -5 -5 -5 -4 -4 -------- Run | Scr Mat Min Exi Min Mat Sto Rec Fac Was Fac Low Low Zio Pro Fac Upp Upp Zhi Pro Fac Total Allies 1 | . . . . . . . . . . . . . . . 1 . . . . . Largest Group 1 | . . . . . . . . . . . . . . . 1 . . . . . Highest-Rated Group 26 | . . . . . . . . . . . . . . . 26 . . . . . Highest-Rated Ally 26 | . . . . . . . . . . . . . . . 26 . . . . . Total Orders . | . . . . . . . . . . . . . . . . . . . . . Ally Attacks . | . . . . . . . . . . . . . . . . . . . . . Total Damage . | . . . . . . . . . . . . . . . . . . . . . Kills . | . . . . . . . . . . . . . . . . . . . . . Allies Corrupted . | . . . . . . . . . . . . . . . . . . . . . Allies Melted . | . . . . . . . . . . . . . . . . . . . . . Intel | -11 -10 -10 -10 -9 -8 -8 -8 -6 -6 -6 -6 -6 -6 -5 -5 -5 -5 -5 -4 -4 ------- Run | Scr Mat Min Exi Min Mat Sto Rec Fac Was Fac Low Low Zio Pro Fac Upp Upp Zhi Pro Fac Robot Analysis Total 4 | . . . . . . . . . . . . . . . . . . 4 . . Derelict Logs Recovered 13 | . . 1 . 1 . . . . . . 1 3 3 . . 1 . . 3 . Drone Launches . | . . . . . . . . . . . . . . . . . . . . . Drone Recoveries . | . . . . . . . . . . . . . . . . . . . . . Exploration | -11 -10 -10 -10 -9 -8 -8 -8 -6 -6 -6 -6 -6 -6 -5 -5 -5 -5 -5 -4 -4 ------------- Run | Scr Mat Min Exi Min Mat Sto Rec Fac Was Fac Low Low Zio Pro Fac Upp Upp Zhi Pro Fac Turns Passed 12172 | . 702 866 586 608 916 621 290 305 81 1920 160 227 2058 355 289 568 418 344 160 698 Spaces Moved 7587 | 1 347 449 303 293 279 215 117 120 118 648 261 404 1667 258 182 382 265 298 338 642 Core 66 | . . . . . . . . . . . . . . . . . . . . 66 Treads 1273 | . . . . . 190 131 117 114 . 630 . . . . . . . . . 91 Legs 2254 | 1 347 449 303 293 89 . . 6 118 18 261 369 . . . . . . . . Wheels 3009 | . . . . . . 84 . . . . . 35 1667 258 182 382 265 136 . . Hover 974 | . . . . . . . . . . . . . . . . . . 162 338 474 Flight 11 | . . . . . . . . . . . . . . . . . . . . 11 Fastest Speed 30 | 120 120 190 190 190 160 95 250 90 45 45 45 45 115 130 115 115 115 38 38 30 Average Speed 136 | 120 165 190 190 190 208 194 250 242 46 244 45 51 121 130 121 129 121 84 44 69 Slowest Speed 410 | 120 190 190 190 190 260 250 250 250 90 410 45 115 130 130 130 130 130 250 96 240 Overloaded Moves 834 | . . . . . . . . . 113 18 261 369 . . . . . . . 73 Propulsion Burnouts 2 | . . . . . . . . . . . . . . . . . . . . 2 Robots Hopped . | . . . . . . . . . . . . . . . . . . . . . Cave-ins Triggered 1 | . . . . . . . . . . . . . . . . 1 . . . . Teleports 1 | . . . . . . . . . . . . . . . . . . . . 1 Exploration Rate (%) 46 | 2 64 79 64 56 30 30 38 3 83 15 37 58 87 51 5 66 47 94 56 18 Regions Visited 20 Branch Regions 13 Pre-discovered Areas 6 | . . . 1 . . . . . . . . . . . . . . 3 2 . Known Exits Taken 6 | . 1 . . . 1 . . . . 1 . . . . 1 . . 1 1 . Unknown Exits Taken 12 | 1 . 1 1 1 . 1 1 . . . 1 1 1 1 . 1 1 . . . Scrap Searched 15 | . . 2 . 2 . . . . . . . 1 3 5 . . . . 2 . Spaces Dug 33 | . . . . . 2 . . . . 2 2 . 2 . . 7 17 . . 1 Terrain Destroyed 572 | . . . . . 121 . . . 80 109 2 2 2 43 34 47 105 . . 27 Melee 7 | . . . . . 2 . . . . . 2 . 2 . . 1 . . . . Projectile 20 | . . . . . 7 . . . . 4 . 2 . . . . . . . 7 AOE 545 | . . . . . 112 . . . 80 105 . . . 43 34 46 105 . . 20 Terrain Rammed . | . . . . . . . . . . . . . . . . . . . . . Walls Destroyed . | . . . . . . . . . . . . . . . . . . . . . Machines Disabled . | . . . . . . . . . . . . . . . . . . . . . Actions | -11 -10 -10 -10 -9 -8 -8 -8 -6 -6 -6 -6 -6 -6 -5 -5 -5 -5 -5 -4 -4 --------- Run | Scr Mat Min Exi Min Mat Sto Rec Fac Was Fac Low Low Zio Pro Fac Upp Upp Zhi Pro Fac Total 8926 | . 418 456 317 321 534 401 116 132 132 894 295 420 1692 270 231 419 324 366 345 843 Wait 509 | . 2 . . 9 164 128 . . . 64 . 1 9 . 23 9 . 19 6 75 Move 7568 | . 346 448 302 292 278 214 116 120 117 647 260 403 1666 257 181 381 264 297 337 642 Hop . | . . . . . . . . . . . . . . . . . . . . . Pick Up 87 | . 8 2 5 . 6 17 . 2 . 16 3 2 5 2 . . 8 1 . 10 Fast Attach 74 | . 3 . . . 9 4 . 3 . 11 2 . 5 1 5 3 2 8 2 16 Attach 54 | . . . . . 8 3 . . . 4 4 3 1 . 3 . 4 4 . 20 Detach 37 | . 1 . . . 3 2 . 1 . 5 4 . 2 1 1 . 3 6 . 8 Swap 75 | . 3 . 3 1 10 5 . 3 1 22 2 . . . 4 5 4 5 . 7 Drop 90 | . 7 . 7 . 3 7 . 2 . 29 6 3 . 1 2 . 3 10 . 10 Fire 355 | . 48 5 . 19 51 7 . . 14 76 1 . . 8 12 20 26 16 . 52 Melee 72 | . . . . . 2 14 . 1 . 20 13 7 4 . . 1 10 . . . Ram 3 | . . . . . . . . . . . . . . . . . . . . 3 Kick 1 | . . 1 . . . . . . . . . . . . . . . . . . Crush . | . . . . . . . . . . . . . . . . . . . . . Escape Stasis . | . . . . . . . . . . . . . . . . . . . . . Rewire . | . . . . . . . . . . . . . . . . . . . . . Trap 1 | . . . . . . . . . . . . 1 . . . . . . . . Miscellaneous . | . . . . . . . . . . . . . . . . . . . . . Route ------- -11/Scrapyard -10/Materials (discovered 3 exits: [*Mat x2] / *Min) -10/Mines (discovered 2 exits: [*Mat] / *Exi) -10/Exiles (discovered 2 exits: [*Min x2]) -9/Mines -8/Materials (discovered 2 exits: [*Fac] / *Sto) -8/Storage -8/Recycling -6/Factory -6/Waste -6/Factory (discovered 2 exits: *Low x2) -6/Lower Caves -6/Lower Caves (discovered 2 exits: *Fac / *Zio) -6/Zion -5/Proximity Caves -5/Factory (discovered 3 exits: Fac / *Upp x2) -5/Upper Caves -5/Upper Caves -5/Zhirov -4/Proximity Caves -4/Factory History --------- Turn | Location | Event 1 | -11/Scrapyard | Discovered new exit (range 0) 1 | -11/Scrapyard | Entered Materials 125 | -10/Materials | Discovered new exit (range 16) 318 | -10/Materials | Build established: Mutant 379 | -10/Materials | Discovered new exit (range 16) 567 | -10/Materials | Identified exit to Mines 703 | -10/Materials | Entered Mines 854 | -10/Mines | Learned Materials interactive machine intel 873 | -10/Mines | A weapon hastily lodged in a ceiling crevice suddenly fell to the ground 1134 | -10/Mines | Received a Rocket Launcher from a helpful Derelict 1386 | -10/Mines | Discovered new exit (range 10) 1447 | -10/Mines | Found a hidden stash of uninstalled traps 1559 | -10/Mines | Deemed a non-threat by the Exiles lab entrance 1561 | -10/Mines | Discovered new exit (range 5) 1569 | -10/Mines | Entered Exiles 1598 | -10/Exiles | Discovered new exit (range 15) 1621 | -10/Exiles | Met 8R-AWN 1649 | -10/Exiles | Met EX-HEX 1737 | -10/Exiles | Met EX-DEC 1763 | -10/Exiles | Learned location of Zion (-6) 1816 | -10/Exiles | Met EX-BIN 1843 | -10/Exiles | Aligned with FarCom system 1845 | -10/Exiles | Given EX-Vault access code 1889 | -10/Exiles | Opened EX-Vault 1915 | -10/Exiles | Found AWS/Thermal 1919 | -10/Exiles | Found AWS/Autocannon 1928 | -10/Exiles | Found Potential Leg 1931 | -10/Exiles | Found Potential Leg 1976 | -10/Exiles | Warned to stay clear of 0b10 Research branches 2134 | -10/Exiles | Discovered new exit (range 14) 2155 | -10/Exiles | Stole three prototypes: Potential Leg, AWS/Thermal, AWS/Autocannon 2155 | -10/Exiles | Entered Mines 2196 | -9/Mines | Met a Derelict bent on vengeance 2497 | -9/Mines | Learned location of 1 exit from Materials 2612 | -9/Mines | Joined a pair of Derelicts in attacking an 0b10 outpost 2751 | -9/Mines | Discovered new exit (range 6) 2763 | -9/Mines | Entered Materials 2763 | -8/Materials | Evolved 4 slots: Utility x4 2764 | -8/Materials | Identified exit to Storage 2765 | -8/Materials | Loaded intel: 18 interactive machine locations 3194 | -8/Materials | Lost 3 parts (1n2u) 3589 | -8/Materials | Lost 5 parts (1p2n1u1w) 3627 | -8/Materials | Discovered new exit (range 16) 3679 | -8/Materials | Entered Storage 3871 | -8/Storage | Build established: Scavenger-Mutant 3963 | -8/Storage | Repaired Lrg. Storage Unit 4292 | -8/Storage | Used back door to open Recycling access 4292 | -8/Storage | Discovered new exit (range 4) 4300 | -8/Storage | Entered Recycling 4301 | -8/Recycling | Joined Warlord attack on 0b10 via Recycling 4305 | -8/Recycling | Spotter reported a threat 4320 | -8/Recycling | Spotter reported a threat 4320 | -8/Recycling | Spotter reported a threat 4320 | -8/Recycling | Spotter reported a threat 4322 | -8/Recycling | Spotter reported a threat 4329 | -8/Recycling | Spotter reported a threat 4339 | -8/Recycling | Spotter reported a threat 4355 | -8/Recycling | Spotter reported a threat 4387 | -8/Recycling | Spotter reported a threat 4387 | -8/Recycling | Spotter reported a threat 4387 | -8/Recycling | Spotter reported a threat 4438 | -8/Recycling | Spotter reported a threat 4438 | -8/Recycling | Spotter reported a threat 4438 | -8/Recycling | Spotter reported a threat 4438 | -8/Recycling | Spotter reported a threat 4508 | -8/Recycling | Spotter reported a threat 4532 | -8/Recycling | Spotter reported a threat 4532 | -8/Recycling | Spotter reported a threat 4536 | -8/Recycling | Build established: Mutant 4550 | -8/Recycling | Spotter reported a threat 4561 | -8/Recycling | Spotter reported a threat 4570 | -8/Recycling | Discovered new exit (range 8) 4585 | -8/Recycling | Spotter reported a threat 4585 | -8/Recycling | Spotter reported a threat 4590 | -8/Recycling | Entered Factory 4590 | -6/Factory | Evolved 4 slots: Utility x4 4592 | -6/Factory | FarCom data flow suspended 4595 | -6/Factory | 1 allies followed out of Recycling 4895 | -6/Factory | Sucked down chute 4895 | -6/Factory | Entered Waste 4909 | -6/Waste | Spotted C-40 Crusher 4910 | -6/Waste | EMP discharged 4953 | -6/Waste | Spotted C-40 Crusher 4954 | -6/Waste | Spotted C-40 Crusher 4960 | -6/Waste | Spotted C-40 Crusher 4961 | -6/Waste | Spotted C-40 Crusher 4966 | -6/Waste | Spotted C-40 Crusher 4970 | -6/Waste | Discovered new exit (range 14) 4976 | -6/Waste | Entered Factory 5613 | -6/Factory | System corruption reached 10% 5738 | -6/Factory | Build established: Scavenger-Mutant 5828 | -6/Factory | Identified exit to Lower Caves 6194 | -6/Factory | Build established: Mutant 6657 | -6/Factory | Repaired Arm. Treads 6896 | -6/Factory | Entered Lower Caves 6896 | -6/Lower Caves | Spotted NM-SYO(f) 6897 | -6/Lower Caves | Encountered a Master Thief 6899 | -6/Lower Caves | Destroyed NM-SYO(f) 6920 | -6/Lower Caves | Learned Factory terminal intel 6987 | -6/Lower Caves | Found Prototype Special Weapon 7052 | -6/Lower Caves | Encountered a Warlord checkpoint 7052 | -6/Lower Caves | Discovered new exit (range 9) 7056 | -6/Lower Caves | Entered another Lower Caves area 7093 | -6/Lower Caves | Discovered new exit (range 9) 7157 | -6/Lower Caves | Build established: Scavenger-Mutant 7185 | -6/Lower Caves | Learned Factory trap positions 7202 | -6/Lower Caves | Learned 12 Factory zone layouts 7211 | -6/Lower Caves | Spotted 2L-1ZK(f) 7212 | -6/Lower Caves | Spotted WM-9DH(f) 7212 | -6/Lower Caves | Spotted G8-TK0(f) 7212 | -6/Lower Caves | Spotted 2A-V3G(f) 7213 | -6/Lower Caves | Encountered a Master Thief 7213 | -6/Lower Caves | Encountered a Master Thief 7213 | -6/Lower Caves | Encountered a Master Thief 7213 | -6/Lower Caves | Encountered a Master Thief 7214 | -6/Lower Caves | AWS/Thermal stolen by Master Thief 7214 | -6/Lower Caves | Spotted 6S-2AK(f) 7215 | -6/Lower Caves | Encountered a Master Thief 7227 | -6/Lower Caves | Potential Leg stolen by Master Thief 7233 | -6/Lower Caves | AWS/Autocannon stolen by Master Thief 7234 | -6/Lower Caves | Potential Leg stolen by Master Thief 7238 | -6/Lower Caves | Nanoactuators stolen by Master Thief 7265 | -6/Lower Caves | Discovered new exit (range 12) 7283 | -6/Lower Caves | Entered Zion 7372 | -6/Zion | Visited the Megawrench Repair Shop 7433 | -6/Zion | Found Prototype Device 7433 | -6/Zion | Identified Mobile Refinery Mk. CCLXVII 7457 | -6/Zion | Discovered new exit (range 22) 7496 | -6/Zion | Received a hallucinogenic algorithm 7499 | -6/Zion | Build established: Mutant 7527 | -6/Zion | System corruption cleaned by Quarantine Array 7602 | -6/Zion | Learned 4 Factory zone layouts 7757 | -6/Zion | Acquired unknown access codes intercepted by a Zionite 7992 | -6/Zion | Found Prototype Device 8037 | -6/Zion | Learned 4 Factory zone layouts 8354 | -6/Zion | Learned Factory recycling unit intel 9341 | -6/Zion | Entered Proximity Caves 9687 | -5/Proximity Caves | Discovered new exit (range 9) 9696 | -5/Proximity Caves | Entered Factory 9696 | -5/Factory | Evolved 2 slots: Propulsion x2 9697 | -5/Factory | Identified exit to Upper Caves 9698 | -5/Factory | Identified exit to Factory 9699 | -5/Factory | Loaded intel: 76 trap records 9700 | -5/Factory | Loaded intel: 25 terminal locations 9701 | -5/Factory | Loaded intel: 6 recycling unit locations 9907 | -5/Factory | Fabricated Mak. Trap Scanner (x2) 9985 | -5/Factory | Entered Upper Caves 9988 | -5/Upper Caves | Attracted the attention of an 0b10 checkpoint 10013 | -5/Upper Caves | Crushed by falling debris 10019 | -5/Upper Caves | System corruption reached 10% 10044 | -5/Upper Caves | Lost 3 parts (1p2u) 10052 | -5/Upper Caves | Learned Factory terminal intel 10336 | -5/Upper Caves | Spotted B-75 Beast 10358 | -5/Upper Caves | Destroyed B-75 Beast 10538 | -5/Upper Caves | Discovered new exit (range 11) 10553 | -5/Upper Caves | Entered another Upper Caves area 10553 | -5/Upper Caves | Spotted KN-MMI(f) 10553 | -5/Upper Caves | Spotted PF-EIH(f) 10554 | -5/Upper Caves | Encountered a Master Thief 10554 | -5/Upper Caves | Encountered a Master Thief 10555 | -5/Upper Caves | Spotted 40-I48(f) 10556 | -5/Upper Caves | Encountered a Master Thief 10558 | -5/Upper Caves | Neutrino Core stolen by Master Thief 10562 | -5/Upper Caves | Lyr. Medium Armor Plating stolen by Master Thief 10566 | -5/Upper Caves | Arm. Medium Treads stolen by Master Thief 10772 | -5/Upper Caves | Found Alien Artifact 10793 | -5/Upper Caves | Attacked by a delusional Derelict stockpiling parts 10809 | -5/Upper Caves | System corruption reached 30% 10883 | -5/Upper Caves | Attracted the attention of an 0b10 checkpoint 10952 | -5/Upper Caves | Discovered new exit (range 17) 10971 | -5/Upper Caves | Entered Zhirov 10972 | -5/Zhirov | Discovered new exit (range 3) 11024 | -5/Zhirov | Learned location of Quarantine (-3) 11024 | -5/Zhirov | Learned location of Testing (-2) 11024 | -5/Zhirov | Learned location of Command (-1) 11066 | -5/Zhirov | Found Alien Artifact 11066 | -5/Zhirov | Identified Integrated Dissipator 11066 | -5/Zhirov | Installed Integrated Dissipator, increased core heat dissipation (+20) 11083 | -5/Zhirov | Found Alien Artifact 11087 | -5/Zhirov | Build established: Scavenger-Mutant 11259 | -5/Zhirov | Cloak Generator disabled 11259 | -5/Zhirov | Attacked by Zhirov 11315 | -5/Zhirov | Identified exit to Proximity Caves 11315 | -5/Zhirov | Entered Proximity Caves 11320 | -4/Proximity Caves | Lost 4 parts (1p2u1w) 11345 | -4/Proximity Caves | Learned Research trap positions 11384 | -4/Proximity Caves | Learned location of Armory (-3) 11470 | -4/Proximity Caves | Discovered exit to Factory (range 5) 11475 | -4/Proximity Caves | Entered Factory 11475 | -4/Factory | Evolved 2 slots: Power x1, Propulsion x1 11476 | -4/Factory | Loaded intel: 26 terminal locations 11497 | -4/Factory | Identified exit to DSF 11526 | -4/Factory | Identified Molecular Deconstructor 11579 | -4/Factory | Lost 4 parts (3u1w) 11585 | -4/Factory | Build established: Mutant 11741 | -4/Factory | System corruption reached 10% 11934 | -4/Factory | Garrison activated, responded to threat 11988 | -4/Factory | System corruption reached 30% 12042 | -4/Factory | Core integrity fell below 50% 12049 | -4/Factory | Identified Transdimensional Reconstructor 12049 | -4/Factory | Warped through subspace 12074 | -4/Factory | Lost 14 parts (3p5n4u2w) 12115 | -4/Factory | Identified Dimensional Node Initializer 12115 | -4/Factory | Initialized slip node 12127 | -4/Factory | Released all parts (7) 12144 | -4/Factory | Core integrity fell below 20% 12173 | -4/Factory | Destroyed by P-70 Sage with Tesla Rifle Last Messages --------------- 12128_ R-10 Processor collects Adv. System Restoration Module. 12129_ U-05 Engineer lays Concrete. 12130_ Slammed into U-05 Engineer. 12130_ U-05 Engineer lays Concrete. 12131_ R-10 Processor collects Mobile Refinery Mk. CCLXVII. 12131_ U-05 Engineer lays Concrete. 12131_ K-01 Serf collects debris. 12132_ U-05 Engineer lays Concrete. 12132_ Slammed into U-05 Engineer. 12132_ ALERT: Construction progress impeded, dispatching reinforcements to local area. 12133_ System corrupted: Matter fused (-7). 12133_ U-05 Engineer lays Concrete. 12146_ Acquired 70 matter. 12148_ Acquired Antigrav System. 12149_ System corrupted: Substantial component data lost. 12152_ G-67 Veteran suffers critical hit (Burn). 12152_ Antigrav System destroyed. 12165_ K4NKAEW,RVQ5I